[Event "*** Titled Tuesday Blitz"]
[Site "Chess.com"]
[Date "2020.02.04"]
[Round "3"]
[White "mishanick"]
[Black "ShahMatKanal"]
[Result "1-0"]
[WhiteElo "2998"]
[BlackElo "2514"]
[TimeControl "180+2"]
[EndTime "13:39:26 PST"]
[Termination "mishanick won on time"]

1. d4 {[%clk 0:03:01.9]} 1... d5 {[%clk 0:03:00.1]} 2. c4 {[%clk 0:03:03.5]}
2... e6 {[%clk 0:03:00.9]} 3. Nf3 {[%clk 0:03:05.4]} 3... Nf6 {[%clk 0:03:00.3]}
4. Nc3 {[%clk 0:03:07.3]} 4... Nbd7 {[%clk 0:03:01.6]} 5. Bf4 {[%clk 0:03:08.8]}
5... dxc4 {[%clk 0:02:59.9]} 6. e3 {[%clk 0:03:10.5]} 6... Nb6 {[%clk
0:02:58.9]} 7. Bxc4 {[%clk 0:03:11]} 7... Nxc4 {[%clk 0:02:55.9]} 8. Qa4+ {[%clk
0:03:12.6]} 8... Bd7 {[%clk 0:02:54.3]} 9. Qxc4 {[%clk 0:03:14]} 9... Bc6 {[%clk
0:02:41.5]} 10. Ne5 {[%clk 0:03:14.4]} 10... Bxg2 {[%clk 0:02:10.7]} 11. Rg1
{[%clk 0:03:15.1]} 11... Bd5 {[%clk 0:02:08.9]} 12. Qb5+ {[%clk 0:03:15.5]}
12... Ke7 {[%clk 0:01:07.1]} 13. Rc1 {[%clk 0:03:04.7]} 13... Rc8 {[%clk
0:00:41.3]} 14. Qb4+ {[%clk 0:02:54.9]} 14... Ke8 {[%clk 0:00:37.4]} 15. Qb5+
{[%clk 0:02:55.9]} 15... Ke7 {[%clk 0:00:38.1]} 16. Qb4+ {[%clk 0:02:42.3]}
16... Ke8 {[%clk 0:00:39.1]} 17. Qa4+ {[%clk 0:02:43.8]} 17... c6 {[%clk
0:00:19.9]} 18. Qxa7 {[%clk 0:02:40.7]} 18... Qe7 {[%clk 0:00:15.8]} 19. a3
{[%clk 0:02:32.3]} 19... h6 {[%clk 0:00:13.6]} 20. Qb6 {[%clk 0:02:26.6]} 20...
g5 {[%clk 0:00:13.6]} 21. Bg3 {[%clk 0:02:27.7]} 21... Bg7 {[%clk 0:00:12.9]}
22. f3 {[%clk 0:02:28.5]} 22... Nh5 {[%clk 0:00:08.4]} 23. e4 {[%clk 0:02:28.4]}
23... Nxg3 {[%clk 0:00:05.6]} 24. hxg3 {[%clk 0:02:30.3]} 24... Bxe5 {[%clk
0:00:06.3]} 25. dxe5 {[%clk 0:02:32.2]} 25... Bc4 {[%clk 0:00:06.7]} 26. Rd1
{[%clk 0:02:33.8]} 26... Rd8 {[%clk 0:00:04.9]} 27. Kf2 {[%clk 0:02:34.6]} 27...
Rxd1 {[%clk 0:00:05]} 28. Rxd1 {[%clk 0:02:36.5]} 28... Kf8 {[%clk 0:00:06.1]}
29. Qd8+ {[%clk 0:02:36.6]} 29... Qxd8 {[%clk 0:00:06.6]} 30. Rxd8+ {[%clk
0:02:37.6]} 30... Kg7 {[%clk 0:00:08.5]} 31. Rd7 {[%clk 0:02:39.1]} 31... Rb8
{[%clk 0:00:08.2]} 32. Ke3 {[%clk 0:02:40.2]} 32... Kf8 {[%clk 0:00:08.1]} 33.
Kd4 {[%clk 0:02:41.1]} 33... Ke8 {[%clk 0:00:08]} 34. Rc7 {[%clk 0:02:41.3]}
34... Ba6 {[%clk 0:00:06.7]} 35. Kc5 {[%clk 0:02:42.6]} 35... Rd8 {[%clk
0:00:07.8]} 36. f4 {[%clk 0:02:38.8]} 36... gxf4 {[%clk 0:00:08.5]} 37. gxf4
{[%clk 0:02:40.7]} 37... Rd7 {[%clk 0:00:09.9]} 38. Rc8+ {[%clk 0:02:39.8]}
38... Rd8 {[%clk 0:00:11.3]} 39. Rc7 {[%clk 0:02:41.2]} 39... Rd7 {[%clk
0:00:12.8]} 40. Kb6 {[%clk 0:02:41.9]} 40... Rxc7 {[%clk 0:00:08.8]} 41. Kxc7
{[%clk 0:02:43.8]} 41... h5 {[%clk 0:00:10.1]} 42. Nd1 {[%clk 0:02:44.9]} 42...
h4 {[%clk 0:00:11.4]} 43. Nf2 {[%clk 0:02:46.5]} 43... Ke7 {[%clk 0:00:11]} 44.
b4 {[%clk 0:02:47.1]} 44... f6 {[%clk 0:00:10.8]} 45. exf6+ {[%clk 0:02:47.7]}
45... Kxf6 {[%clk 0:00:12]} 46. a4 {[%clk 0:02:49.3]} 46... e5 {[%clk
0:00:09.9]} 47. f5 {[%clk 0:02:50]} 47... Kg5 {[%clk 0:00:10.8]} 48. a5 {[%clk
0:02:49.5]} 48... Kf6 {[%clk 0:00:10.8]} 49. Kb8 {[%clk 0:02:49.2]} 49... Ke7
{[%clk 0:00:11.4]} 50. Ka7 {[%clk 0:02:49.3]} 50... Kf6 {[%clk 0:00:11.6]} 51.
Kb6 {[%clk 0:02:50.8]} 51... Ke7 {[%clk 0:00:12.3]} 52. Kc7 {[%clk 0:02:48.9]}
52... Kf6 {[%clk 0:00:13.1]} 53. Ng4+ {[%clk 0:02:50.2]} 53... Kg5 {[%clk
0:00:11.8]} 54. Nxe5 {[%clk 0:02:51.4]} 54... h3 {[%clk 0:00:12.5]} 55. Nf3+
{[%clk 0:02:52.8]} 55... Kf4 {[%clk 0:00:12.6]} 56. f6 {[%clk 0:02:54.1]} 56...
Bc4 {[%clk 0:00:11.6]} 57. Nh2 {[%clk 0:02:49.4]} 57... Kg3 {[%clk 0:00:11.8]}
58. e5 {[%clk 0:02:50.6]} 58... Kxh2 {[%clk 0:00:12.3]} 59. Kxb7 {[%clk
0:02:50.6]} 59... Kg1 {[%clk 0:00:11.3]} 60. a6 {[%clk 0:02:52]} 60... h2 {[%clk
0:00:04.8]} 61. a7 {[%clk 0:02:53.5]} 61... Bd5 {[%clk 0:00:05.8]} 62. a8=Q
{[%clk 0:02:55.4]} 62... c5+ {[%clk 0:00:07]} 63. Kb6 {[%clk 0:02:51.9]} 63...
Bxa8 {[%clk 0:00:08]} 64. f7 {[%clk 0:02:53.6]} 64... h1=Q {[%clk 0:00:08.3]}
65. f8=Q {[%clk 0:02:55.5]} 65... Qc6+ {[%clk 0:00:05.8]} 66. Ka5 {[%clk
0:02:57]} 66... c4 {[%clk 0:00:04.5]} 67. Qg7+ {[%clk 0:02:56.5]} 67... Kf2
{[%clk 0:00:04.4]} 68. b5 {[%clk 0:02:57.9]} 68... Qc5 {[%clk 0:00:03.8]} 69.
Qf6+ {[%clk 0:02:59]} 69... Ke3 {[%clk 0:00:03.9]} 70. e6 {[%clk 0:02:58.5]}
70... Qa3+ {[%clk 0:00:04.2]} 71. Kb6 {[%clk 0:02:59.4]} 71... Be4 {[%clk
0:00:04.8]} 72. e7 {[%clk 0:02:57.3]} 72... Qa8 {[%clk 0:00:05.1]} 73. Qf8
{[%clk 0:02:55.2]} 73... Qb7+ {[%clk 0:00:04.9]} 74. Kc5 {[%clk 0:02:56.2]}
74... Qc7+ {[%clk 0:00:04.9]} 75. Kb4 {[%clk 0:02:57.8]} 75... c3 {[%clk
0:00:04.2]} 76. e8=Q {[%clk 0:02:55.2]} 76... c2 {[%clk 0:00:05.4]} 77. Qh6+
{[%clk 0:02:55.8]} 77... Kd3 {[%clk 0:00:03.7]} 78. Qh3+ {[%clk 0:02:54.5]}
78... Kd4 {[%clk 0:00:03.1]} 79. Qeh8+ {[%clk 0:02:54]} 79... Kd5 {[%clk
0:00:03]} 80. Q3h5+ {[%clk 0:02:54.8]} 80... Ke6 {[%clk 0:00:02.3]} 81. Q8e8+
{[%clk 0:02:55.5]} 1-0

[Event "*** Titled Tuesday Blitz"]
[Site "Chess.com"]
[Date "2020.02.04"]
[Round "3"]
[White "guillembaches"]
[Black "Astaneh"]
[Result "1-0"]
[WhiteElo "2388"]
[BlackElo "2544"]
[TimeControl "180+2"]
[EndTime "13:39:28 PST"]
[Termination "guillembaches won on time"]

1. e4 {[%clk 0:03:01.9]} 1... e5 {[%clk 0:03:00.4]} 2. Nf3 {[%clk 0:03:02.7]}
2... Nc6 {[%clk 0:03:01.7]} 3. Nc3 {[%clk 0:03:04.2]} 3... Nf6 {[%clk
0:03:02.4]} 4. d4 {[%clk 0:03:05.7]} 4... exd4 {[%clk 0:03:02.4]} 5. Nxd4 {[%clk
0:03:07.6]} 5... Bb4 {[%clk 0:03:02.7]} 6. Nxc6 {[%clk 0:03:08.6]} 6... bxc6
{[%clk 0:03:02.5]} 7. Bd3 {[%clk 0:03:10]} 7... d5 {[%clk 0:03:03.3]} 8. Bd2
{[%clk 0:03:10.7]} 8... O-O {[%clk 0:03:00.4]} 9. O-O {[%clk 0:03:11.4]} 9...
Re8 {[%clk 0:03:00.4]} 10. Re1 {[%clk 0:03:04.9]} 10... Bg4 {[%clk 0:03:00.3]}
11. f3 {[%clk 0:02:52.6]} 11... Bh5 {[%clk 0:02:28.6]} 12. Nxd5 {[%clk
0:02:37.6]} 12... Nxd5 {[%clk 0:01:45.7]} 13. exd5 {[%clk 0:02:31.4]} 13... Bc5+
{[%clk 0:01:46.8]} 14. Kh1 {[%clk 0:02:29.5]} 14... cxd5 {[%clk 0:01:12.5]} 15.
Rxe8+ {[%clk 0:02:23.8]} 15... Qxe8 {[%clk 0:01:14.4]} 16. Qe2 {[%clk
0:02:21.6]} 16... Qd7 {[%clk 0:01:09]} 17. Re1 {[%clk 0:02:17.5]} 17... c6
{[%clk 0:01:06.3]} 18. b4 {[%clk 0:02:12.9]} 18... Bd6 {[%clk 0:01:06.6]} 19.
Bc3 {[%clk 0:01:58.8]} 19... Qc7 {[%clk 0:01:04.3]} 20. Be5 {[%clk 0:01:42.5]}
20... Re8 {[%clk 0:01:01.8]} 21. Bxd6 {[%clk 0:01:26.3]} 21... Rxe2 {[%clk
0:01:03.7]} 22. Rxe2 {[%clk 0:01:27.3]} 22... Qd8 {[%clk 0:00:51.1]} 23. Be7
{[%clk 0:01:20.9]} 23... Qd7 {[%clk 0:00:46.1]} 24. Bc5 {[%clk 0:01:19.7]} 24...
Bg6 {[%clk 0:00:33.3]} 25. Re7 {[%clk 0:01:17.8]} 25... Qd8 {[%clk 0:00:32.5]}
26. Rxa7 {[%clk 0:01:13.8]} 26... Bxd3 {[%clk 0:00:31]} 27. cxd3 {[%clk
0:01:15.7]} 27... h5 {[%clk 0:00:27.9]} 28. Re7 {[%clk 0:01:08.7]} 28... Qa8
{[%clk 0:00:26.1]} 29. Ra7 {[%clk 0:01:01.8]} 29... Qb8 {[%clk 0:00:21.3]} 30.
a4 {[%clk 0:00:46.1]} 30... h4 {[%clk 0:00:16.9]} 31. h3 {[%clk 0:00:43]} 31...
Qe5 {[%clk 0:00:15.4]} 32. a5 {[%clk 0:00:43.1]} 32... d4 {[%clk 0:00:16]} 33.
a6 {[%clk 0:00:41.6]} 33... Qe1+ {[%clk 0:00:10.1]} 34. Kh2 {[%clk 0:00:42]}
34... Qg3+ {[%clk 0:00:12]} 35. Kg1 {[%clk 0:00:43.1]} 35... Qe1+ {[%clk
0:00:12]} 36. Kh2 {[%clk 0:00:44.2]} 36... Qa1 {[%clk 0:00:11.6]} 37. Ra8+
{[%clk 0:00:37.8]} 37... Kh7 {[%clk 0:00:12.4]} 38. a7 {[%clk 0:00:39]} 38...
Kg6 {[%clk 0:00:12.1]} 39. Re8 {[%clk 0:00:25.3]} 39... Qc1 {[%clk 0:00:12.7]}
40. Re4 {[%clk 0:00:12.2]} 40... Qa3 {[%clk 0:00:13.6]} 41. Re8 {[%clk
0:00:10.3]} 41... Qc1 {[%clk 0:00:13.6]} 42. Bd6 {[%clk 0:00:07.9]} 42... f6
{[%clk 0:00:04.1]} 43. a8=Q {[%clk 0:00:08.7]} 1-0

[Event "*** Titled Tuesday Blitz"]
[Site "Chess.com"]
[Date "2020.02.04"]
[Round "3"]
[White "allvim"]
[Black "AliKa2810"]
[Result "0-1"]
[WhiteElo "2426"]
[BlackElo "2627"]
[TimeControl "180+2"]
[EndTime "13:39:36 PST"]
[Termination "AliKa2810 won by checkmate"]

1. d4 {[%clk 0:03:01.9]} 1... Nf6 {[%clk 0:02:58.6]} 2. c4 {[%clk 0:03:03.3]}
2... g6 {[%clk 0:02:58.4]} 3. Nc3 {[%clk 0:03:04.5]} 3... Bg7 {[%clk 0:02:59.6]}
4. Nf3 {[%clk 0:03:05.5]} 4... O-O {[%clk 0:02:59.7]} 5. h3 {[%clk 0:03:04.9]}
5... d5 {[%clk 0:02:58.8]} 6. Bf4 {[%clk 0:03:03.9]} 6... c5 {[%clk 0:02:54.1]}
7. e3 {[%clk 0:03:04.3]} 7... cxd4 {[%clk 0:02:50.8]} 8. Nxd4 {[%clk 0:03:04.1]}
8... Nc6 {[%clk 0:02:42.7]} 9. Nxc6 {[%clk 0:03:04.8]} 9... bxc6 {[%clk
0:02:42.6]} 10. Be2 {[%clk 0:03:06.3]} 10... Re8 {[%clk 0:02:18.6]} 11. O-O
{[%clk 0:02:55.9]} 11... e5 {[%clk 0:02:04.1]} 12. Bg5 {[%clk 0:02:55.3]} 12...
Be6 {[%clk 0:02:05.2]} 13. Qa4 {[%clk 0:02:54.1]} 13... h6 {[%clk 0:01:58.6]}
14. Bh4 {[%clk 0:02:54.2]} 14... g5 {[%clk 0:01:50.6]} 15. Bg3 {[%clk
0:02:55.1]} 15... d4 {[%clk 0:01:52]} 16. Nd1 {[%clk 0:02:38.9]} 16... Ne4
{[%clk 0:01:51.7]} 17. Qxc6 {[%clk 0:02:20.8]} 17... Nxg3 {[%clk 0:01:40.8]} 18.
fxg3 {[%clk 0:02:21.8]} 18... d3 {[%clk 0:01:30.4]} 19. Bf3 {[%clk 0:02:17.3]}
19... Rc8 {[%clk 0:01:30.5]} 20. Qb7 {[%clk 0:02:07.4]} 20... Rc7 {[%clk
0:01:21.1]} 21. Qb4 {[%clk 0:01:48.6]} 21... Rxc4 {[%clk 0:01:21.8]} 22. Qa3
{[%clk 0:01:39.4]} 22... e4 {[%clk 0:01:18.6]} 23. Bg4 {[%clk 0:01:34.1]} 23...
Bxg4 {[%clk 0:01:15.5]} 24. hxg4 {[%clk 0:01:35.4]} 24... Qc7 {[%clk 0:01:15.3]}
25. Nc3 {[%clk 0:01:29.6]} 25... Bxc3 {[%clk 0:01:14.8]} 26. bxc3 {[%clk
0:01:27.6]} 26... Rxc3 {[%clk 0:01:16.2]} 27. Qa4 {[%clk 0:01:25.6]} 27... Re6
{[%clk 0:01:04.9]} 28. Qd4 {[%clk 0:01:09]} 28... Rc2 {[%clk 0:01:05.4]} 29.
Rab1 {[%clk 0:01:04.6]} 29... Rc4 {[%clk 0:00:16]} 30. Qd5 {[%clk 0:01:01.9]}
30... Rcc6 {[%clk 0:00:07.8]} 31. Kh2 {[%clk 0:01:02.7]} 31... Qd6 {[%clk
0:00:08]} 32. Qf5 {[%clk 0:00:57.3]} 32... Rc7 {[%clk 0:00:05.8]} 33. Rb8+
{[%clk 0:00:57.2]} 33... Kg7 {[%clk 0:00:05.5]} 34. Rb5 {[%clk 0:00:29.5]} 34...
Rf6 {[%clk 0:00:05.6]} 35. Qxe4 {[%clk 0:00:21.9]} 35... Rxf1 {[%clk 0:00:05.9]}
36. Rd5 {[%clk 0:00:23.2]} 36... Qe6 {[%clk 0:00:06.4]} 37. Qxd3 {[%clk
0:00:23.9]} 37... Rf6 {[%clk 0:00:06.4]} 38. Rd8 {[%clk 0:00:20.7]} 38... Re7
{[%clk 0:00:06.9]} 39. Qd4 {[%clk 0:00:20.7]} 39... Re8 {[%clk 0:00:07.5]} 40.
Rd7 {[%clk 0:00:21]} 40... Qxe3 {[%clk 0:00:08.2]} 41. Qb2 {[%clk 0:00:19.4]}
41... Qe5 {[%clk 0:00:08]} 42. Qb7 {[%clk 0:00:19.7]} 42... Ree6 {[%clk
0:00:05.9]} 43. Qxa7 {[%clk 0:00:20.6]} 43... Rf1 {[%clk 0:00:06.2]} 44. a4
{[%clk 0:00:21.4]} 44... Ref6 {[%clk 0:00:07.5]} 45. a5 {[%clk 0:00:22.3]} 45...
Qa1 {[%clk 0:00:08.5]} 46. Re7 {[%clk 0:00:04.9]} 46... Rh1# {[%clk 0:00:08.6]}
0-1

[Event "*** Titled Tuesday Blitz"]
[Site "Chess.com"]
[Date "2020.02.04"]
[Round "3"]
[White "Snegokhod"]
[Black "SCIM"]
[Result "1/2-1/2"]
[WhiteElo "2629"]
[BlackElo "2449"]
[TimeControl "180+2"]
[EndTime "13:39:54 PST"]
[Termination "Game drawn by stalemate"]

1. e4 {[%clk 0:02:59.7]} 1... e5 {[%clk 0:02:58]} 2. Nf3 {[%clk 0:02:59.9]} 2...
Nc6 {[%clk 0:02:59.5]} 3. Bb5 {[%clk 0:03:00.1]} 3... a6 {[%clk 0:02:59.1]} 4.
Bxc6 {[%clk 0:02:58.5]} 4... dxc6 {[%clk 0:03:01]} 5. Nc3 {[%clk 0:02:59.7]}
5... Bg4 {[%clk 0:02:56.5]} 6. h3 {[%clk 0:02:59.6]} 6... Bh5 {[%clk 0:02:54.3]}
7. g4 {[%clk 0:02:59.8]} 7... Bg6 {[%clk 0:02:55.5]} 8. Nxe5 {[%clk 0:03:01]}
8... Bd6 {[%clk 0:02:54.6]} 9. Nxg6 {[%clk 0:02:54.8]} 9... hxg6 {[%clk
0:02:56.5]} 10. d4 {[%clk 0:02:53.5]} 10... Qh4 {[%clk 0:02:52.3]} 11. e5 {[%clk
0:02:41.4]} 11... Bb4 {[%clk 0:02:51.3]} 12. Be3 {[%clk 0:02:37.1]} 12... O-O-O
{[%clk 0:02:48.4]} 13. Qf3 {[%clk 0:02:36.6]} 13... c5 {[%clk 0:02:27]} 14.
O-O-O {[%clk 0:02:31.6]} 14... Bxc3 {[%clk 0:02:24.4]} 15. bxc3 {[%clk
0:02:31.3]} 15... Ne7 {[%clk 0:02:20.7]} 16. Qxf7 {[%clk 0:02:28.4]} 16... Nd5
{[%clk 0:02:10.5]} 17. Qxg6 {[%clk 0:02:09.2]} 17... Nxc3 {[%clk 0:02:02.7]} 18.
Bg5 {[%clk 0:02:00.8]} 18... Qxf2 {[%clk 0:01:47.8]} 19. Bxd8 {[%clk 0:01:53.5]}
19... Rxd8 {[%clk 0:01:46.5]} 20. Qf5+ {[%clk 0:01:53.9]} 20... Qxf5 {[%clk
0:01:37.1]} 21. gxf5 {[%clk 0:01:55.1]} 21... Nxd1 {[%clk 0:01:38.9]} 22. Rxd1
{[%clk 0:01:37.5]} 22... cxd4 {[%clk 0:01:39.3]} 23. Rg1 {[%clk 0:01:27.9]}
23... Rd5 {[%clk 0:01:13.7]} 24. Rxg7 {[%clk 0:01:21]} 24... Rxe5 {[%clk
0:01:14]} 25. f6 {[%clk 0:01:22.4]} 25... Rf5 {[%clk 0:00:59.6]} 26. f7 {[%clk
0:01:03.3]} 26... Kd8 {[%clk 0:01:00]} 27. h4 {[%clk 0:01:02.3]} 27... Ke7
{[%clk 0:00:58.8]} 28. f8=Q+ {[%clk 0:01:03.1]} 28... Kxf8 {[%clk 0:00:58.5]}
29. Rxc7 {[%clk 0:01:04.7]} 29... Rb5 {[%clk 0:00:55.5]} 30. Kd2 {[%clk
0:00:59.5]} 30... Rb2 {[%clk 0:00:49.5]} 31. a3 {[%clk 0:00:50.2]} 31... b5
{[%clk 0:00:36.4]} 32. Ra7 {[%clk 0:00:45.1]} 32... Ra2 {[%clk 0:00:28.3]} 33.
Rxa6 {[%clk 0:00:39.4]} 33... b4 {[%clk 0:00:29.2]} 34. Rd6 {[%clk 0:00:39.9]}
34... b3 {[%clk 0:00:18.1]} 35. Rxd4 {[%clk 0:00:35.7]} 35... Rxc2+ {[%clk
0:00:18.8]} 36. Kd3 {[%clk 0:00:34.4]} 36... Rh2 {[%clk 0:00:16.2]} 37. Kc3
{[%clk 0:00:25.7]} 37... b2 {[%clk 0:00:16.1]} 38. Rb4 {[%clk 0:00:25.6]} 38...
Rxh4 {[%clk 0:00:14.5]} 39. Rxb2 {[%clk 0:00:21.6]} 39... Ke7 {[%clk 0:00:15.2]}
40. Rd2 {[%clk 0:00:21.4]} 40... Rh6 {[%clk 0:00:11.7]} 41. Kb4 {[%clk
0:00:20.9]} 41... Rd6 {[%clk 0:00:13.2]} 42. Rh2 {[%clk 0:00:17.5]} 42... Kd7
{[%clk 0:00:13.8]} 43. a4 {[%clk 0:00:19]} 43... Kc7 {[%clk 0:00:13.8]} 44. Kb5
{[%clk 0:00:20.5]} 44... Kb8 {[%clk 0:00:12.8]} 45. Rh8+ {[%clk 0:00:20.4]}
45... Ka7 {[%clk 0:00:12.9]} 46. Rh7+ {[%clk 0:00:21.4]} 46... Ka8 {[%clk
0:00:13]} 47. a5 {[%clk 0:00:22.7]} 47... Rg6 {[%clk 0:00:13.5]} 48. Rd7 {[%clk
0:00:21.5]} 48... Rf6 {[%clk 0:00:14.7]} 49. Rc7 {[%clk 0:00:22.3]} 49... Rg6
{[%clk 0:00:15.9]} 50. Rc5 {[%clk 0:00:22.6]} 50... Rf6 {[%clk 0:00:16.9]} 51.
a6 {[%clk 0:00:20.3]} 51... Rg6 {[%clk 0:00:18.1]} 52. Ka5 {[%clk 0:00:18.5]}
52... Rf6 {[%clk 0:00:18.9]} 53. Re5 {[%clk 0:00:18.5]} 53... Ka7 {[%clk
0:00:18.6]} 54. Re7+ {[%clk 0:00:19.1]} 54... Ka8 {[%clk 0:00:20.1]} 55. Rb7
{[%clk 0:00:19.9]} 55... Rxa6+ {[%clk 0:00:14.7]} 56. Kxa6 {[%clk 0:00:20.7]}
1/2-1/2

[Event "*** Titled Tuesday Blitz"]
[Site "Chess.com"]
[Date "2020.02.04"]
[Round "3"]
[White "Ceejay271"]
[Black "SlavenPastar"]
[Result "0-1"]
[WhiteElo "2279"]
[BlackElo "2490"]
[TimeControl "180+2"]
[EndTime "13:39:55 PST"]
[Termination "SlavenPastar won by resignation"]

1. d4 {[%clk 0:03:01.9]} 1... d5 {[%clk 0:03:01.1]} 2. c4 {[%clk 0:03:01.3]}
2... dxc4 {[%clk 0:03:03]} 3. Nf3 {[%clk 0:03:02]} 3... Nf6 {[%clk 0:03:03.7]}
4. e3 {[%clk 0:03:03.1]} 4... Bg4 {[%clk 0:03:04.7]} 5. Bxc4 {[%clk 0:03:03.8]}
5... e6 {[%clk 0:03:01.4]} 6. Nc3 {[%clk 0:03:04.5]} 6... Nc6 {[%clk 0:03:02.2]}
7. h3 {[%clk 0:03:05.1]} 7... Bh5 {[%clk 0:03:01.4]} 8. O-O {[%clk 0:02:56.9]}
8... Bd6 {[%clk 0:03:00.3]} 9. Be2 {[%clk 0:02:54.2]} 9... O-O {[%clk
0:03:00.2]} 10. b3 {[%clk 0:02:54.8]} 10... Nd5 {[%clk 0:02:56.1]} 11. Bb2
{[%clk 0:02:44.9]} 11... f5 {[%clk 0:02:55.2]} 12. Rc1 {[%clk 0:02:39.8]} 12...
Qe7 {[%clk 0:02:53]} 13. Nb5 {[%clk 0:02:02]} 13... Rac8 {[%clk 0:02:39]} 14.
Ne5 {[%clk 0:01:54.6]} 14... Bxe5 {[%clk 0:02:29.8]} 15. dxe5 {[%clk 0:01:49.8]}
15... Bxe2 {[%clk 0:02:25.8]} 16. Qxe2 {[%clk 0:01:50.6]} 16... a6 {[%clk
0:02:25.1]} 17. Nc3 {[%clk 0:01:50.8]} 17... Nxe5 {[%clk 0:02:19.4]} 18. Nxd5
{[%clk 0:01:45]} 18... exd5 {[%clk 0:02:20.6]} 19. Qd2 {[%clk 0:01:41.8]} 19...
c6 {[%clk 0:02:19.2]} 20. Qd4 {[%clk 0:01:42.3]} 20... Rce8 {[%clk 0:02:11.8]}
21. a4 {[%clk 0:01:41.1]} 21... Rf6 {[%clk 0:01:59]} 22. b4 {[%clk 0:01:40.9]}
22... Rg6 {[%clk 0:01:57.2]} 23. Kh1 {[%clk 0:01:33.3]} 23... Qg5 {[%clk
0:01:46.1]} 24. Rg1 {[%clk 0:01:33.1]} 24... Nc4 {[%clk 0:01:36.6]} 25. Ba1
{[%clk 0:01:32.2]} 25... Re4 {[%clk 0:01:27.9]} 26. Qa7 {[%clk 0:01:28.3]} 26...
Qe7 {[%clk 0:01:25]} 27. Qb8+ {[%clk 0:01:23.6]} 27... Kf7 {[%clk 0:01:23.9]}
28. b5 {[%clk 0:01:23.4]} 28... axb5 {[%clk 0:01:10.3]} 29. axb5 {[%clk
0:01:24.1]} 29... cxb5 {[%clk 0:01:05.9]} 30. Rgd1 {[%clk 0:01:06.6]} 30... Qg5
{[%clk 0:00:49.3]} 31. Qxb7+ {[%clk 0:01:02.3]} 31... Kf8 {[%clk 0:00:46.5]} 32.
Rg1 {[%clk 0:01:00.9]} 32... f4 {[%clk 0:00:45.4]} 33. exf4 {[%clk 0:00:56.4]}
33... Rxf4 {[%clk 0:00:41.9]} 34. Qb8+ {[%clk 0:00:46.9]} 34... Kf7 {[%clk
0:00:39.2]} 35. Qxb5 {[%clk 0:00:35.8]} 35... Kg8 {[%clk 0:00:30.5]} 36. Rcd1
{[%clk 0:00:20.7]} 36... Rf5 {[%clk 0:00:29]} 37. Qe8+ {[%clk 0:00:19.6]} 37...
Rf8 {[%clk 0:00:28.3]} 38. Qd7 {[%clk 0:00:20.7]} 38... Rd6 {[%clk 0:00:24.6]}
39. Qb7 {[%clk 0:00:19.3]} 39... h6 {[%clk 0:00:24.5]} 40. Bd4 {[%clk
0:00:19.7]} 40... Rg6 {[%clk 0:00:19.9]} 41. Bc5 {[%clk 0:00:19.3]} 41... Rf5
{[%clk 0:00:20.8]} 42. Qc8+ {[%clk 0:00:19.9]} 42... Kh7 {[%clk 0:00:21.6]} 43.
Qd7 {[%clk 0:00:19.8]} 43... Qh5 {[%clk 0:00:21.6]} 44. Rd3 {[%clk 0:00:14.3]}
44... Ne5 {[%clk 0:00:20.1]} 45. g4 {[%clk 0:00:11.8]} 45... Nxd7 {[%clk
0:00:18.7]} 46. gxh5 {[%clk 0:00:12.7]} 46... Rxg1+ {[%clk 0:00:20.1]} 47. Kxg1
{[%clk 0:00:13.8]} 47... Nxc5 {[%clk 0:00:21.6]} 48. Rc3 {[%clk 0:00:12.3]}
48... Ne4 {[%clk 0:00:21.6]} 49. Rd3 {[%clk 0:00:12]} 49... Rxh5 {[%clk
0:00:22.6]} 50. f3 {[%clk 0:00:13.2]} 50... Nf6 {[%clk 0:00:22.7]} 51. Kg2
{[%clk 0:00:14.5]} 51... Rg5+ {[%clk 0:00:23.6]} 52. Kf2 {[%clk 0:00:15.5]}
52... Rf5 {[%clk 0:00:23.7]} 53. Rd4 {[%clk 0:00:15.9]} 53... Ne4+ {[%clk
0:00:21.6]} 54. Ke3 {[%clk 0:00:16.6]} 54... Ng5 {[%clk 0:00:22.6]} 55. h4
{[%clk 0:00:10.6]} 55... Nxf3 {[%clk 0:00:20.6]} 0-1